bitfinex/quotes_SOLUSD_20251216
["timestamp","ask_amount","ask_price","bid_price","bid_amount"]
[1765870020861,4.48048062,126.88,126.86,16.52255258]
[1765870021059,4.48048062,126.88,126.86,17.20255258]
[1765870021684,4.48048062,126.88,126.86,16.52255258]
[1765870021880,4.48048062,126.88,126.87,0.68]
[1765870022087,0.66,126.89,126.87,8.56205053]
[1765870022270,4.48048062,126.88,126.87,8.56205053]
[1765870024257,0.66,126.89,126.87,8.56205053]
[1765870024454,4.48048062,126.88,126.87,8.56205053]
[1765870026979,31.57046978,126.9,126.87,8.56205053]
[1765870027184,4.48048062,126.89,126.87,8.56205053]
[1765870027387,5.17048062,126.89,126.87,8.56205053]
[1765870027764,4.48048062,126.88,126.87,8.56205053]
[1765870028585,5.17048062,126.89,126.87,8.56205053]
[1765870029385,4.48048062,126.88,126.87,8.56205053]
[1765870034004,5.17048062,126.89,126.87,8.56205053]
[1765870034377,4.48048062,126.88,126.87,8.56205053]
[1765870043411,4.48048062,126.88,126.87,17.20205053]
[1765870044595,5.17048062,126.88,126.87,16.52205053]
[1765870046100,4.48048062,126.88,126.87,16.52205053]
[1765870046289,5.17048062,126.88,126.87,16.52205053]
[1765870047111,5.17048062,126.88,126.87,8.64]
[1765870049618,4.48048062,126.88,126.87,8.64]
[1765870049815,4.48048062,126.88,126.87,9.32]
[1765870050120,4.48048062,126.88,126.87,8.64]
[1765870050420,4.48048062,126.88,126.87,9.32]
[1765870050620,5.17048062,126.88,126.83,69.78445648]
[1765870050794,4.48048062,126.84,126.83,61.9]
[1765870051133,4.48048062,126.84,126.83,7.88456989]
[1765870051819,4.48048062,126.84,126.83,8.56456989]
[1765870052928,4.48048062,126.84,126.82,79.34994492]
[1765870052929,5.16048062,126.84,126.82,8.64]
[1765870053128,5.16048062,126.83,126.82,8.64]
[1765870054395,13.04505051,126.83,126.8,0.66]
[1765870054591,4.48048062,126.81,126.8,9.3]
[1765870055407,4.48048062,126.81,126.8,17.18630946]
[1765870062738,4.48048062,126.81,126.8,16.52630946]
[1765870063652,4.48048062,126.81,126.8,78.42630946]
[1765870066155,4.48048062,126.81,126.8,79.08630946]
[1765870070148,31.58548464,126.84,126.8,79.08630946]
[1765870070335,4.48048062,126.82,126.81,0.66]
[1765870071023,0.68,126.83,126.81,0.66]
[1765870071230,4.48048062,126.82,126.81,0.66]
[1765870072347,0.68,126.83,126.81,0.66]
[1765870072555,4.48048062,126.83,126.81,8.54562784]
[1765870072747,4.48048062,126.83,126.82,8.64]
[1765870073454,4.48048062,126.84,126.82,17.18513578]
[1765870073629,4.48048062,126.85,126.83,0.66]
[1765870074050,4.48048062,126.85,126.84,8.64]
[1765870074431,4.48048062,126.85,126.84,9.3]
[1765870074953,4.48048062,126.85,126.84,8.64]
[1765870075152,0.68,126.87,126.84,17.1834663]
[1765870075451,4.48048062,126.86,126.84,17.1834663]
[1765870075656,4.48186281,126.86,126.84,17.1834663]
[1765870076030,5.16186281,126.86,126.84,17.1834663]
[1765870078558,4.48186281,126.86,126.84,17.1834663]
[1765870078854,5.16186281,126.86,126.84,17.1834663]
[1765870081263,5.16186281,126.86,126.82,16.52474924]
[1765870081264,5.16186281,126.85,126.82,16.52474924]
[1765870081430,2.86971279,126.83,126.82,16.52474924]
[1765870081629,2.86971279,126.83,126.82,17.18474924]
[1765870082740,2.86971279,126.84,126.82,17.18474924]
[1765870082943,2.86971279,126.84,126.83,0.69]
[1765870085239,2.86971279,126.84,126.83,8.57456989]
[1765870085736,0.66,126.86,126.83,8.57456989]
[1765870085942,2.86971279,126.85,126.83,8.57456989]
[1765870086138,2.86971279,126.85,126.83,7.88456989]
[1765870086364,2.86971279,126.86,126.84,9.33]
[1765870086664,2.86971279,126.85,126.84,9.33]
[1765870087763,2.86971279,126.85,126.84,17.21394828]
[1765870088443,2.86971279,126.85,126.84,8.64]
[1765870089562,2.86971279,126.85,126.84,16.52394828]
[1765870091670,2.86971279,126.85,126.84,17.21394828]
[1765870091848,2.86971279,126.86,126.84,17.21394828]
[1765870092353,3.52971279,126.86,126.84,17.21394828]
[1765870094464,0.66,126.86,126.84,17.21394828]
[1765870094765,2.86971279,126.85,126.84,17.21394828]
[1765870095192,0.66,126.87,126.84,17.21394828]
[1765870095478,2.86971279,126.85,126.84,17.21394828]
[1765870096450,2.86971279,126.85,126.84,79.11394828]
[1765870097274,2.86971279,126.85,126.84,70.54]
[1765870097566,11.41303955,126.85,126.84,70.54]
[1765870101158,3.52971279,126.85,126.84,70.54]
[1765870101877,11.41303955,126.85,126.84,61.9]
[1765870102264,11.41303955,126.85,126.82,8.64]
[1765870102467,2.86971279,126.83,126.82,8.64]
[1765870103250,2.86971279,126.83,126.82,9.33]
[1765870104781,2.86971279,126.83,126.82,17.21519161]
[1765870106585,3.52971279,126.84,126.82,17.21519161]
[1765870107472,2.86971279,126.84,126.82,17.21519161]
[1765870108985,3.52971279,126.85,126.83,0.69]
[1765870109556,2.86971279,126.85,126.83,0.69]
[1765870110087,2.86971279,126.85,126.84,7.88394828]
[1765870110788,3.52971279,126.85,126.83,7.8844202]
[1765870110964,2.86971279,126.84,126.83,7.8844202]
[1765870111165,2.86971279,126.84,126.83,8.5744202]
[1765870111584,2.86971279,126.84,126.82,16.52488278]
[1765870111585,3.52971279,126.84,126.82,16.52488278]
[1765870111772,3.52971279,126.83,126.82,8.64]
[1765870112296,3.52971279,126.83,126.8,69.78611771]
[1765870112459,2.86971279,126.81,126.8,78.42611771]
[1765870112662,2.86971279,126.81,126.8,79.13611771]
[1765870112989,2.86971279,126.81,126.8,8.64]
[1765870113186,0.68,126.81,126.8,8.64]
[1765870113491,3.54971279,126.81,126.8,8.64]
[1765870113665,2.86971279,126.81,126.8,16.52630428]
[1765870115196,3.54971279,126.81,126.8,8.64]
[1765870123278,2.86971279,126.82,126.8,17.19643533]
[1765870123476,2.86971279,126.82,126.81,0.67]
[1765870126705,2.86971279,126.82,126.81,8.55581342]
[1765870128796,2.86971279,126.82,126.81,7.88581342]
[1765870129173,2.86971279,126.82,126.81,8.55581342]
[1765870129380,2.86971279,126.84,126.81,70.45581342]
[1765870129613,2.86971279,126.84,126.82,9.31]
[1765870130483,2.86971279,126.84,126.82,16.5245806]
[1765870130682,2.86971279,126.84,126.83,0.67]
[1765870131508,2.86971279,126.85,126.83,8.55456989]
[1765870131704,3.54971279,126.85,126.83,8.55456989]
[1765870132004,2.86971279,126.86,126.84,9.31]
[1765870133722,2.86971279,126.86,126.84,17.19345606]
[1765870134096,0.68,126.87,126.85,0.67]
[1765870134284,2.86971279,126.87,126.85,0.67]
[1765870134713,3.54971279,126.87,126.85,8.55324571]
[1765870135724,2.86971279,126.86,126.85,8.55324571]
[1765870135897,36.74283781,126.88,126.86,0.67]
[1765870136102,2.86971279,126.87,126.86,0.67]
[1765870136502,2.86971279,126.88,126.86,9.31]
[1765870136814,2.86971279,126.89,126.86,9.31]
[1765870137016,2.86971279,126.89,126.87,0.67]
[1765870137412,2.86971279,126.89,126.88,8.64]
[1765870137919,2.86971279,126.9,126.88,17.19106914]
[1765870138121,2.86971279,126.9,126.89,0.67]
[1765870138305,2.86971279,126.9,126.88,17.19106914]
[1765870138898,2.86971279,126.89,126.88,8.64]
[1765870139228,0.68,126.9,126.88,8.64]
[1765870139421,2.86971279,126.89,126.88,8.64]
[1765870139920,2.86971279,126.89,126.88,9.31]
[1765870140116,2.86971279,126.89,126.88,8.55146279]
[1765870140322,22.96707385,126.92,126.88,17.19146279]
[1765870140525,2.86971279,126.9,126.89,0.67]
[1765870141829,3.54971279,126.9,126.88,16.52146279]
[1765870142130,2.86971279,126.89,126.88,16.52146279]
[1765870142531,20.37379229,126.91,126.88,45.7550647]
[1765870142740,2.86971279,126.91,126.89,0.72]
[1765870142940,2.86601924,126.91,126.9,8.64]
[1765870143417,4.47816438,126.91,126.9,8.64]
[1765870143817,4.47816438,126.91,126.9,16.52022064]
[1765870144017,4.47816438,126.92,126.9,17.24022064]
[1765870144227,4.47816438,126.92,126.91,0.72]
[1765870144829,21.07379229,126.93,126.91,0.72]
[1765870145031,4.47816438,126.92,126.9,17.24022064]
[1765870145342,4.47816438,126.91,126.9,17.24022064]
[1765870146848,28.95221263,126.93,126.9,17.24022064]
[1765870147049,4.47816438,126.91,126.9,17.24022064]
[1765870148137,0.7,126.92,126.9,17.24022064]
[1765870148326,4.47816438,126.91,126.9,17.24022064]
[1765870150644,4.47816438,126.91,126.9,16.52022064]
[1765870151327,4.47816438,126.91,126.9,17.24022064]
[1765870154035,0.7,126.92,126.9,17.24022064]
[1765870154240,4.47816438,126.91,126.9,17.24022064]
[1765870155344,0.7,126.92,126.9,17.24022064]
[1765870155525,4.47816438,126.91,126.9,17.24022064]
[1765870157656,0.7,126.92,126.9,17.24022064]
[1765870157948,4.47816438,126.91,126.9,17.24022064]
[1765870159456,0.7,126.92,126.9,17.24022064]
[1765870159748,4.47816438,126.91,126.9,17.24022064]
[1765870160750,4.47816438,126.91,126.9,8.64]
[1765870160929,5.17816438,126.91,126.86,90.51657886]
[1765870161127,4.47816438,126.87,126.86,8.64]
[1765870161336,4.47816438,126.87,126.86,16.52247517]
[1765870162352,4.47816438,126.87,126.86,17.24247517]
[1765870166352,4.47816438,126.87,126.86,16.52247517]
[1765870166558,4.47816438,126.87,126.86,17.24247517]
[1765870166858,4.47816438,126.87,126.86,16.52247517]
[1765870167263,4.47816438,126.87,126.86,17.24247517]
[1765870171270,4.47816438,126.87,126.86,16.52247517]
[1765870171846,4.47816438,126.87,126.86,17.24247517]
[1765870172662,0.7,126.88,126.86,17.24247517]
[1765870172834,4.47816438,126.87,126.86,17.24247517]
[1765870177546,4.47816438,126.87,126.86,16.52247517]
[1765870177746,0.7,126.88,126.86,17.19247517]
[1765870177946,4.47816438,126.87,126.86,17.19247517]
[1765870179266,4.47816438,126.88,126.86,17.19247517]
[1765870179643,17.52525558,126.89,126.87,0.67]
[1765870180245,0.67,126.9,126.88,8.64]
[1765870180571,4.47816438,126.89,126.88,8.64]
[1765870180773,4.47816438,126.89,126.88,9.31]
[1765870181073,4.47816438,126.89,126.88,16.52146279]
[1765870181247,0.67,126.9,126.88,16.52146279]
[1765870181569,4.47816438,126.89,126.88,16.52146279]
[1765870182173,5.14816438,126.89,126.88,16.52146279]
[1765870182741,5.14816438,126.89,126.88,8.64]
[1765870182962,5.14816438,126.89,126.87,69.78189259]
[1765870183244,5.14816438,126.89,126.87,78.42189259]
[1765870183245,4.47816438,126.88,126.87,78.42189259]
[1765870184353,5.14816438,126.88,126.87,78.42189259]
[1765870184551,4.47816438,126.88,126.87,78.42189259]
[1765870185474,4.47816438,126.88,126.87,16.52189259]
[1765870185653,5.14816438,126.88,126.87,8.64]
[1765870186673,5.14816438,126.88,126.87,16.52208402]
[1765870187876,0.67,126.88,126.87,16.52208402]
[1765870188173,5.14816438,126.88,126.87,16.52208402]
[1765870188550,4.47816438,126.88,126.87,17.19208402]
[1765870188960,4.47816438,126.88,126.87,16.52208402]
[1765870189677,4.47816438,126.88,126.87,17.19208402]
[1765870190061,4.47816438,126.88,126.87,16.52208402]
[1765870191480,4.47816438,126.88,126.87,17.19208402]
[1765870194689,0.67,126.89,126.87,17.19208402]
[1765870195184,4.47816438,126.88,126.87,17.19208402]
[1765870200390,4.47816438,126.88,126.87,9.31]
[1765870200570,4.47816438,126.88,126.87,8.64]
[1765870200779,5.14816438,126.88,126.86,61.9]
[1765870201084,4.47816438,126.9,126.86,70.54]
[1765870201085,5.14816438,126.87,126.86,70.54]
[1765870201306,5.14816438,126.87,126.86,8.64]
[1765870201463,5.14816438,126.87,126.83,7.88425997]
[1765870201666,0.67,126.86,126.84,8.64]
[1765870201884,4.47816438,126.85,126.84,9.31]
[1765870202609,4.47816438,126.85,126.84,17.19394828]
[1765870203022,5.19816438,126.85,126.84,8.64]
[1765870203384,3.58953039,126.85,126.84,8.64]
[1765870203707,3.58953039,126.85,126.82,16.52514837]
[1765870203872,2.86953039,126.83,126.81,17.23557852]
[1765870204077,2.86953039,126.82,126.81,17.23557852]
[1765870205474,2.86953039,126.82,126.81,8.64]
[1765870205809,3.58953039,126.82,126.81,8.64]
[1765870206504,3.58953039,126.82,126.79,8.5967634]
[1765870206808,2.86953039,126.81,126.8,9.35]
[1765870208105,2.86953039,126.81,126.8,0.71]
[1765870208301,2.86953039,126.81,126.8,9.35]
[1765870208975,2.86953039,126.81,126.8,8.64]
[1765870209179,24.52253036,126.81,126.78,0.71]
[1765870209398,2.86953039,126.79,126.78,9.35]
[1765870210194,3.58953039,126.79,126.78,16.52767944]
[1765870210397,2.87131658,126.79,126.78,16.52767944]
[1765870210590,2.87131658,126.79,126.78,17.23767944]
[1765870210893,3.59131658,126.8,126.78,17.23767944]
[1765870211328,2.87131658,126.8,126.79,0.71]
[1765870211506,2.87131658,126.81,126.79,0.71]
[1765870211687,2.87131658,126.81,126.8,8.64]
[1765870212087,2.87131658,126.81,126.8,9.35]
[1765870212297,15.91840778,126.81,126.8,9.35]
[1765870212689,2.87131658,126.82,126.8,17.23619843]
[1765870212893,2.87131658,126.82,126.81,0.71]
[1765870213497,2.87131658,126.82,126.8,16.52619843]
[1765870213498,2.87131658,126.82,126.8,17.23619843]
[1765870214795,3.59131658,126.82,126.8,17.23619843]
[1765870216508,2.87131658,126.81,126.8,9.35]
[1765870217308,2.87131658,126.81,126.8,17.23643533]
[1765870218918,2.87131658,126.82,126.8,79.13643533]
[1765870219108,13.0470912,126.85,126.81,0.71]
[1765870219311,2.87131658,126.86,126.83,8.80994492]
[1765870219497,2.87131658,126.86,126.84,8.64]
[1765870219829,2.87131658,126.86,126.84,9.35]
[1765870220207,2.87131658,126.86,126.85,7.88332676]
[1765870221023,0.72,126.87,126.85,7.88332676]
[1765870221024,2.87131658,126.87,126.85,7.88332676]
[1765870221221,2.87131658,126.87,126.86,0.71]
[1765870221418,15.91840778,126.89,126.86,9.35]
[1765870221728,16.63840778,126.89,126.86,9.35]
[1765870222227,13.7670912,126.89,126.86,9.35]
[1765870222425,2.87131658,126.87,126.86,8.64]
[1765870222636,2.87131658,126.87,126.85,16.52300435]
[1765870222798,2.87131658,126.87,126.85,17.23300435]
[1765870223837,2.87131658,126.87,126.85,16.52300435]
[1765870224034,2.87131658,126.88,126.86,8.59270534]
[1765870224201,2.87131658,126.88,126.87,9.35]
[1765870224397,2.87131658,126.88,126.87,8.64]
[1765870225725,21.64802878,126.89,126.87,8.64]
[1765870225907,2.87131658,126.88,126.87,8.64]
[1765870230327,15.91840778,126.89,126.87,17.23205655]
[1765870230524,0.72,126.88,126.87,8.64]
[1765870230714,2.87131658,126.88,126.87,8.64]
[1765870230915,3.59131658,126.88,126.87,8.64]
[1765870236007,0.72,126.88,126.87,8.64]
[1765870236322,3.59131658,126.88,126.87,8.64]
[1765870242641,11.47277937,126.88,126.85,78.42318377]
[1765870242811,0.72,126.87,126.85,70.54]
[1765870243130,2.87131658,126.86,126.85,61.9]
[1765870243446,2.87131658,126.86,126.84,8.64]
[1765870243646,16.63840778,126.85,126.82,69.78496985]
[1765870243813,2.87131658,126.84,126.82,16.52496985]
[1765870244010,3.59131658,126.84,126.82,17.19496985]
[1765870244611,2.87131658,126.83,126.82,17.19496985]
[1765870249444,2.87131658,126.84,126.82,17.19496985]
[1765870249748,2.87131658,126.85,126.83,0.67]
[1765870249913,3.59131658,126.84,126.82,7.88496985]
[1765870250114,0.72,126.84,126.83,8.64]
[1765870250426,2.87131658,126.84,126.83,8.64]
[1765870251140,0.72,126.85,126.83,8.64]
[1765870251440,2.87131658,126.84,126.83,8.64]
[1765870255548,2.87131658,126.84,126.83,17.19456989]
[1765870258747,2.87131658,126.85,126.83,17.19456989]
[1765870259056,2.87131658,126.88,126.84,0.67]
[1765870259256,8.60111327,126.89,126.85,8.64]
[1765870259639,2.87131658,126.88,126.86,0.67]
[1765870259847,3.59131658,126.88,126.86,0.67]
[1765870260362,8.60033136,126.9,126.87,7.88208402]
[1765870260651,2.87131658,126.89,126.87,7.88208402]
[1765870260837,2.87131658,126.88,126.87,0.67]
[1765870263069,11.43294053,126.88,126.86,70.54]
[1765870263360,3.55131658,126.87,126.84,16.52364336]
[1765870263560,2.87131658,126.85,126.83,8.64]
[1765870263770,2.87131658,126.84,126.83,8.64]
[1765870265340,4.48359421,126.84,126.83,9.29]
[1765870269643,4.48359421,126.84,126.83,8.64]
[1765870270141,4.48359421,126.84,126.83,9.29]
[1765870270337,4.48359421,126.84,126.83,8.64]
[1765870270735,4.48359421,126.84,126.83,9.29]
[1765870273757,0.68,126.85,126.83,8.64]
[1765870274060,4.48359421,126.84,126.83,9.29]
[1765870274634,0.68,126.85,126.83,9.29]
[1765870274957,4.48359421,126.84,126.83,8.64]
[1765870275157,4.48359421,126.84,126.83,9.29]
[1765870276968,0.68,126.85,126.83,9.29]
[1765870277261,4.48310137,126.84,126.83,9.29]
[1765870277756,4.48310137,126.84,126.83,17.17453001]
[1765870277959,32.75278276,126.87,126.84,8.80994492]
[1765870277960,4.48310137,126.87,126.84,8.80994492]
[1765870278161,8.66116137,126.89,126.85,8.64]
[1765870278336,4.48310137,126.88,126.85,9.29]
[1765870278537,4.48310137,126.88,126.86,0.65]
[1765870278841,5.16310137,126.88,126.86,0.65]
[1765870279041,5.16310137,126.87,126.84,61.9]
[1765870279247,4.48310137,126.85,126.84,61.9]
[1765870279564,12.36642813,126.85,126.84,61.9]
[1765870279768,13.04642813,126.85,126.84,61.9]
[1765870280202,13.04642813,126.85,126.81,9.29]
[1765870280469,13.04642813,126.85,126.81,8.64]
[1765870280470,4.48310137,126.82,126.81,8.64]
[1765870280769,4.48310137,126.82,126.81,9.29]
[1765870282567,4.48310137,126.82,126.81,8.64]
[1765870283658,0.68,126.83,126.81,9.29]
[1765870283960,4.48310137,126.82,126.81,9.29]
[1765870284664,4.48310137,126.82,126.81,8.64]
[1765870284968,4.48310137,126.82,126.81,9.29]
[1765870285340,4.48310137,126.83,126.81,17.17581342]
[1765870285540,4.48310137,126.84,126.82,0.65]
[1765870285741,4.48310137,126.83,126.81,16.52581342]
[1765870286173,0.68,126.84,126.82,0.65]
[1765870286384,4.48310137,126.83,126.82,0.65]
[1765870286937,4.48310137,126.83,126.82,8.53519161]
[1765870287142,4.48310137,126.84,126.82,8.53519161]
[1765870287350,4.48310137,126.85,126.83,9.29]
[1765870288352,4.48310137,126.85,126.83,8.64]
[1765870288554,4.48310137,126.87,126.85,7.88332676]
[1765870288763,4.48310137,126.87,126.85,16.52332676]
[1765870288954,17.53019257,126.87,126.86,0.65]
[1765870289154,4.48310137,126.89,126.86,0.65]
[1765870289362,5.16310137,126.89,126.86,0.65]
[1765870290480,4.48310137,126.88,126.86,0.65]
[1765870291192,4.48310137,126.88,126.86,8.53214357]
[1765870292988,13.0470912,126.91,126.88,8.80994492]
[1765870293186,13.7070912,126.91,126.88,8.80994492]
[1765870293481,5.14310137,126.9,126.88,9.52994492]
[1765870293783,4.48310137,126.89,126.88,0.72]
[1765870294177,0.66,126.9,126.88,0.72]
[1765870294381,4.48310137,126.89,126.88,0.72]
[1765870294765,0.66,126.9,126.88,0.72]
[1765870294960,4.48310137,126.89,126.88,0.72]
[1765870296185,4.48310137,126.89,126.88,8.60146279]
[1765870296360,7.87911305,126.92,126.88,8.60146279]
[1765870296685,4.48310137,126.92,126.9,7.88022064]
[1765870297194,4.48310137,126.91,126.89,17.24057714]
[1765870297389,4.48310137,126.9,126.89,8.64]
[1765870297560,5.14310137,126.9,126.89,8.64]
[1765870297759,5.14310137,126.9,126.87,0.72]
[1765870297964,4.48310137,126.88,126.87,8.64]
[1765870299389,4.48310137,126.88,126.85,70.70994492]
[1765870299390,13.02456416,126.88,126.85,70.54]
[1765870299585,4.48310137,126.86,126.85,71.26]
[1765870299773,4.48310137,126.86,126.85,79.14332676]
[1765870300089,8.54146279,126.88,126.85,79.14332676]
[1765870300290,4.48310137,126.86,126.85,71.26]
[1765870300469,4.48310137,126.86,126.85,70.54]
[1765870301265,4.48310137,126.86,126.85,8.64]
[1765870301586,4.48310137,126.86,126.85,9.36]
[1765870302086,4.48310137,126.86,126.85,8.64]
[1765870302286,4.48310137,126.86,126.85,16.52332676]
[1765870302495,4.48310137,126.86,126.85,17.24332676]
[1765870303292,4.48310137,126.86,126.85,9.36]
[1765870304096,4.48310137,126.86,126.85,8.64]
[1765870304262,8.54146279,126.88,126.85,8.64]
[1765870304590,4.48310137,126.86,126.85,8.64]
[1765870309395,4.48310137,126.86,126.85,16.52332676]
[1765870309994,4.48310137,126.86,126.85,8.64]
[1765870310600,0.66,126.87,126.85,8.64]
[1765870310808,4.48310137,126.86,126.85,17.24332676]
[1765870312111,4.48310137,126.86,126.85,16.52332676]
[1765870312506,4.48310137,126.86,126.83,7.88417571]
[1765870312507,5.14310137,126.86,126.83,7.88417571]
[1765870312708,4.48310137,126.84,126.83,79.14417571]
[1765870313907,0.66,126.86,126.83,79.14417571]
[1765870314081,4.48310137,126.84,126.83,79.14417571]
[1765870314406,4.48310137,126.85,126.83,79.14417571]
[1765870314602,4.48310137,126.85,126.83,98.13560045]
[1765870314791,4.48310137,126.85,126.84,0.72]
[1765870315301,4.48310137,126.86,126.84,0.72]
[1765870315890,4.48310137,126.86,126.85,8.64]
[1765870316292,4.48310137,126.86,126.85,9.36]
[1765870316492,4.48310137,126.86,126.85,17.24332676]
[1765870316692,5.14310137,126.87,126.85,17.24332676]
[1765870317002,4.48310137,126.87,126.85,17.24332676]
[1765870318616,4.48310137,126.87,126.86,8.60270534]
[1765870318793,4.48310137,126.88,126.86,8.60270534]
[1765870318987,5.14310137,126.88,126.86,7.88270534]
[1765870319187,4.48310137,126.87,126.86,7.88270534]
[1765870319900,27.5814345,126.9,126.86,8.60270534]
[1765870320098,4.48310137,126.87,126.86,7.88270534]
[1765870320412,4.48310137,126.87,126.86,8.60270534]
[1765870321116,0.66,126.89,126.86,8.60270534]
[1765870321603,4.48310137,126.88,126.86,8.60270534]
[1765870321990,4.48310137,126.89,126.87,17.24180168]
[1765870322202,4.48310137,126.89,126.88,0.72]
[1765870322809,4.48310137,126.9,126.88,0.72]
[1765870323017,13.7070912,126.91,126.88,0.72]
[1765870323319,4.48310137,126.91,126.89,8.64]
[1765870323522,4.48310137,126.92,126.9,0.7]
[1765870323823,0.68,126.93,126.9,0.7]
[1765870324119,4.48310137,126.91,126.9,0.7]
[1765870324421,4.48310137,126.91,126.9,8.58022064]
[1765870324818,8.55841392,126.93,126.9,8.58022064]
[1765870325130,8.55848567,126.93,126.9,8.58022064]
[1765870325424,4.48310137,126.91,126.9,8.58022064]
[1765870326225,0.68,126.93,126.9,8.58022064]
[1765870326440,4.48310137,126.91,126.9,8.58022064]
[1765870327403,2.8657721,126.91,126.9,8.58022064]
[1765870328118,0.68,126.93,126.9,8.58022064]
[1765870328307,2.8657721,126.91,126.9,8.58022064]
[1765870330124,3.5457721,126.91,126.89,16.52054286]
[1765870330333,11.6057721,126.96,126.89,16.52054286]
[1765870330334,3.5457721,126.9,126.89,16.52054286]
[1765870330626,6.4115442,126.9,126.86,16.52239142]
[1765870330827,2.8657721,126.87,126.86,8.64]
[1765870331010,2.8657721,126.87,126.86,16.52265745]
[1765870331427,3.5457721,126.87,126.86,16.52265745]
[1765870331628,2.8657721,126.87,126.86,16.52265745]
[1765870332935,2.8657721,126.87,126.86,8.64]
[1765870333121,3.5457721,126.87,126.84,16.5235835]
[1765870333320,7.88185375,126.88,126.84,16.5235835]
[1765870333321,2.8657721,126.85,126.84,16.5235835]
[1765870333515,2.8657721,126.85,126.84,8.64]
[1765870334029,2.8657721,126.85,126.84,17.22390882]
[1765870335322,7.88185375,126.88,126.84,17.22390882]
[1765870335527,2.8657721,126.85,126.84,16.52390882]
[1765870335913,0.68,126.87,126.84,16.52390882]
[1765870336128,2.8657721,126.85,126.84,16.52390882]
[1765870336307,2.8657721,126.85,126.84,17.22390882]
[1765870336837,2.8657721,126.86,126.84,17.22390882]
[1765870337640,2.8657721,126.85,126.84,16.52390882]
[1765870338721,2.8657721,126.85,126.84,17.22390882]
[1765870340238,2.8657721,126.86,126.84,26.03385374]
[1765870340436,2.8657721,126.88,126.85,0.7]
[1765870340642,2.8657721,126.87,126.86,8.64]
[1765870341011,3.5457721,126.87,126.86,8.64]
[1765870342214,2.8657721,126.87,126.86,8.64]
[1765870342408,0.68,126.89,126.86,16.52270534]
[1765870342612,2.8657721,126.88,126.86,16.52270534]
[1765870342810,2.8657721,126.88,126.86,17.22270534]
[1765870343824,2.8657721,126.87,126.86,17.22270534]
[1765870345026,2.86765336,126.87,126.86,17.22270534]
[1765870345727,20.92699148,126.91,126.86,17.22270534]
[1765870345918,2.86765336,126.89,126.87,0.7]
[1765870346116,2.86765336,126.89,126.88,8.64]
[1765870346738,2.86765336,126.89,126.88,17.22146279]
[1765870347936,2.86765336,126.89,126.88,8.64]
[1765870348317,2.86765336,126.89,126.88,16.52146279]
[1765870348821,2.86765336,126.89,126.88,17.22146279]
[1765870349340,2.86765336,126.89,126.88,8.64]
[1765870349726,3.54765336,126.89,126.88,8.64]
[1765870350342,3.54765336,126.89,126.88,16.52146279]
[1765870350521,2.86765336,126.89,126.88,16.52146279]
[1765870351542,2.86765336,126.89,126.88,17.22146279]
[1765870351717,2.86765336,126.9,126.88,36.92511978]
[1765870351921,2.86765336,126.91,126.89,0.7]
[1765870352116,2.86765336,126.91,126.9,8.64]
[1765870352922,3.56765336,126.91,126.9,8.64]
[1765870353123,0.7,126.91,126.9,8.64]
[1765870353437,3.56765336,126.91,126.9,8.64]
[1765870354440,3.56765336,126.91,126.9,16.52022064]
[1765870354641,2.86765336,126.91,126.9,16.52022064]
[1765870355841,2.86765336,126.91,126.9,8.64]
[1765870356946,2.86765336,126.91,126.9,17.18022064]
[1765870357156,2.86765336,126.92,126.9,17.18022064]
[1765870357331,2.86765336,126.92,126.91,0.66]
[1765870357524,2.86765336,126.92,126.9,16.52022064]
[1765870357740,2.86765336,126.92,126.9,17.18022064]
[1765870359047,0.7,126.93,126.91,7.8795814]
[1765870359353,2.86765336,126.92,126.91,7.8795814]
[1765870359724,0.7,126.93,126.91,7.8795814]
[1765870360141,2.86765336,126.92,126.91,7.8795814]
[1765870360449,0.7,126.93,126.91,7.8795814]
[1765870360748,2.86765336,126.92,126.91,7.8795814]
[1765870362951,2.86765336,126.92,126.91,8.5395814]
[1765870363552,13.7470912,126.94,126.91,8.5395814]
[1765870363751,2.86765336,126.93,126.91,8.5395814]
[1765870364135,21.6248403,126.94,126.92,8.64]
[1765870364452,13.7470912,126.94,126.92,9.3]
[1765870364751,2.86765336,126.93,126.92,9.3]
[1765870365146,0.7,126.95,126.92,9.3]
[1765870365462,2.86765336,126.93,126.92,9.3]